{"text_format":"1","workbook":"xlsx","n_sheets":1,"sheets":["Feuil1"],"not_rendered":{"charts":0,"images":0,"macros":1,"external_links":0,"defined_names":0,"comments":0,"pivot_tables":0},"unopened":[],"bounds":{"document_bytes":16777216,"sheet_cells":100000,"rows_first":2000,"rows_last":500,"rows_between":2000,"halvings":0,"cell_chars":16384,"cell_head_chars":4096},"cells_cut":0,"cells_raw":0,"read":"whole","date_system":"1900"}

{"sheet":"Feuil1","index":0,"n_rows":25,"n_cols":8,"rows_kept":25,"cut":false,"hidden":false,"merged":[]}
["N°","ODF","Reg/Paire",null,null,null,null,"ODF"]
[{"$f":"ROW()-1","v":1},{"$f":"MID(H2,4,1)","v":"3"},null,null,null,null,null,"ODF3 REG E1 (7-8)"]
[{"$f":"ROW()-1","v":2},{"$f":"MID(H3,4,1)","v":"3"},null,null,null,null,null,"ODF3 REG H2 (23-24)"]
[3,""]
[4,"2",null,null,null,null,null,"ODF2 REG F1 (15-16)"]
[5,"2",null,null,null,null,null,"ODF2 REG F3 (11-12)"]
[6,"4",null,null,null,null,null,"ODF4 REG A5 (5-6)"]
[7,"4",null,null,null,null,null,"ODF4 REG B7 (3-4)"]
[8,"4",null,null,null,null,null,"ODF4 REG B7 (3-4)"]
[9,"4",null,null,null,null,null,"ODF4 REG B11 (1-2)"]
[10,"3",null,null,null,null,null,"ODF3 REG E2 (9-10)"]
[11,"2",null,null,null,null,null,"ODF2 REG B1 (3-4)"]
[12,"2",null,null,null,null,null,"ODF2 REG E3 (3-4)"]
[13,"2",null,null,null,null,null,"ODF2 REG E1 (7-8)"]
[14,"2",null,null,null,null,null,"ODF2 REG E5 (9-10)"]
[15,""]
[16,""]
[17,"3",null,null,null,null,null,"ODF3 REG F5 (11-12)"]
[18,""]
[19,"3",null,null,null,null,null,"ODF3 REG F4 (9-10)"]
[20,"s",null,null,null,null,null,"Vers Eq4"]
[21,""]
[22]
[23]
[24]